fUSD/lending_fUSD_20260517
["ID","MTS","AMOUNT","RATE_DAILY","PERIOD"]
[422462744,1778968262000,-472.14488087,0.0004,120]
[422462733,1778968262000,-5060.46715262,0.00039986,15]
[422462736,1778968262000,-3163.47353179,0.00039999,2]
[422462735,1778968262000,-151.0,0.00039997,14]
[422462738,1778968262000,-500.0,0.00039999,31]
[422462739,1778968262000,-630.29734655,0.00039999,31]
[422462745,1778968262000,-648.607678,0.0004,30]
[422462721,1778968262000,-1262.6009,0.000399,2]
[422462742,1778968262000,-236.36017277,0.00039999,31]
[422462740,1778968262000,-500.0,0.00039999,31]
[422462754,1778968262000,-39702.65356506,0.0004,10]
[422462750,1778968262000,-1586.33612459,0.0004,2]
[422462753,1778968262000,-5000.00279003,0.0004,90]
[422462755,1778968262000,-37373.57544143,0.0004,10]
[422462752,1778968262000,-1708.60126756,0.0004,2]
[422462748,1778968262000,-396.50050032,0.0004,2]
[422462746,1778968262000,-2101.32666991,0.0004,2]
[422462747,1778968262000,-1013.18177362,0.0004,7]
[422462741,1778968262000,-320.55059676,0.00039999,31]
[422462743,1778968262000,-165.45212093,0.00039999,31]
[422462737,1778968262000,-500.0,0.00039999,31]
[422462749,1778968262000,-24144.10506724,0.0004,2]
[422462827,1778968263000,-2123.786559,0.00040042,30]
[422462822,1778968263000,-374.778137,0.00040042,30]
[422462824,1778968263000,-2123.786567,0.00040042,30]
[422462830,1778968263000,-305.660067,0.00040042,30]
[422462831,1778968263000,-305.660073,0.00040042,30]
[422462833,1778968263000,-463.691199,0.00040042,30]
[422462821,1778968263000,-374.778137,0.00040042,30]
[422462817,1778968263000,-1198.758275,0.00040042,30]
[422462829,1778968263000,-305.660067,0.00040042,30]
[422462812,1778968263000,-151.0,0.00040042,30]
[422462832,1778968263000,-463.691199,0.00040042,30]
[422462813,1778968263000,-151.0,0.00040042,30]
[422462835,1778968263000,-463.691191,0.00040042,30]
[422462825,1778968263000,-2123.786567,0.00040042,30]
[422462828,1778968263000,-305.660067,0.00040042,30]
[422462826,1778968263000,-2123.786567,0.00040042,30]
[422462845,1778968263000,-151.0,0.00040042,30]
[422462834,1778968263000,-463.691199,0.00040042,30]
[422462846,1778968263000,-151.0,0.00040042,30]
[422462836,1778968263000,-528.657617,0.00040042,30]
[422462837,1778968263000,-528.657617,0.00040042,30]
[422462840,1778968263000,-184.204153,0.00040042,30]
[422462843,1778968263000,-184.204158,0.00040042,30]
[422462839,1778968263000,-528.657608,0.00040042,30]
[422462815,1778968263000,-151.0,0.00040042,30]
[422462838,1778968263000,-528.657617,0.00040042,30]
[422462823,1778968263000,-374.77812904,0.00040042,30]
[422462816,1778968263000,-1198.758275,0.00040042,30]
[422462800,1778968263000,-261.1828,0.00040042,30]
[422462810,1778968263000,-151.0,0.00040042,30]
[422462842,1778968263000,-184.204153,0.00040042,30]
[422462793,1778968263000,-25305.13790112,0.00040041,37]
[422462792,1778968263000,-1592.98310658,0.00040041,7]
[422462787,1778968263000,-208.44072055,0.0004,3]
[422462788,1778968263000,-714.33,0.0004,90]
[422462789,1778968263000,-1500.0,0.0004,32]
[422462790,1778968263000,-215.03962261,0.0004,10]
[422462791,1778968263000,-2104.65,0.00040013,2]
[422462794,1778968263000,-427945.7435141,0.00040042,2]
[422462796,1778968263000,-200945.7306363,0.00040042,2]
[422462797,1778968263000,-3780.5536824,0.00040042,2]
[422462798,1778968263000,-3780.5536825,0.00040042,2]
[422462814,1778968263000,-151.0,0.00040042,30]
[422462795,1778968263000,-259745.1769576,0.00040042,2]
[422462803,1778968263000,-284.289204,0.00040042,30]
[422462799,1778968263000,-229.908155,0.00040042,30]
[422462804,1778968263000,-284.289204,0.00040042,30]
[422462802,1778968263000,-284.289204,0.00040042,30]
[422462805,1778968263000,-151.0,0.00040042,30]
[422462806,1778968263000,-199.293253,0.00040042,30]
[422462808,1778968263000,-199.293253,0.00040042,30]
[422462818,1778968263000,-1198.758275,0.00040042,30]
[422462807,1778968263000,-199.293253,0.00040042,30]
[422462819,1778968263000,-1198.758279,0.00040042,30]
[422462809,1778968263000,-199.293245,0.00040042,30]
[422462811,1778968263000,-151.0,0.00040042,30]
[422462801,1778968263000,-284.289204,0.00040042,30]
[422462841,1778968263000,-184.204153,0.00040042,30]
[422462820,1778968263000,-374.778137,0.00040042,30]
[422462847,1778968263000,-151.0,0.00040042,20]
[422462878,1778968263000,-200.0,0.00040093,2]
[422462882,1778968263000,-1391.15109988,0.00040093,7]
[422462876,1778968263000,-169.17,0.00040083,3]
[422462879,1778968263000,-200.0,0.00040093,2]
[422462880,1778968263000,-200.0,0.00040093,2]
[422462883,1778968263000,-2500.0,0.000401,120]
[422462884,1778968263000,-165.29041115,0.00040117,2]
[422462885,1778968263000,-150.0,0.000402,28]
[422462887,1778968263000,-152.0,0.000402,120]
[422462898,1778968263000,-406.85,0.0004029,120]
[422462897,1778968263000,-406.85,0.0004029,120]
[422462886,1778968263000,-163.8,0.000402,28]
[422462892,1778968263000,-150.0,0.00040269,2]
[422462889,1778968263000,-2132.0,0.00040229,11]
[422462894,1778968263000,-19827.2,0.00040281,15]
[422462896,1778968263000,-1830.08120038,0.00040281,120]
[422462891,1778968263000,-470.06119019,0.00040267,2]
[422462890,1778968263000,-152.0,0.00040236,3]
[422462895,1778968263000,-150.0,0.00040281,6]
[422462893,1778968263000,-150.0,0.00040269,2]
[422462904,1778968263000,-406.85,0.0004029,120]
[422462899,1778968263000,-406.85,0.0004029,120]
[422462900,1778968263000,-406.85,0.0004029,120]
[422462905,1778968263000,-406.85,0.0004029,120]
[422462902,1778968263000,-406.85,0.0004029,120]
[422462901,1778968263000,-406.85,0.0004029,120]
[422462844,1778968263000,-151.0,0.00040042,30]
[422462875,1778968263000,-169.17,0.00040083,3]
[422462881,1778968263000,-1378.64683166,0.00040093,2]
[422462888,1778968263000,-151.0,0.000402,120]
[422462877,1778968263000,-200.0,0.00040093,2]
[422462849,1778968263000,-151.0,0.00040042,30]
[422462874,1778968263000,-169.17,0.00040083,3]
[422462851,1778968263000,-279.30719,0.00040042,28]
[422462850,1778968263000,-279.30719,0.00040042,28]
[422462853,1778968263000,-279.307186,0.00040042,28]
[422462852,1778968263000,-279.30719,0.00040042,28]
[422462854,1778968263000,-1850.140719,0.00040042,7]
[422462857,1778968263000,-448.43651,0.00040042,30]
[422462855,1778968263000,-448.43651,0.00040042,30]
[422462858,1778968263000,-1850.140719,0.00040042,7]
[422462856,1778968263000,-1850.140719,0.00040042,7]
[422462860,1778968263000,-1850.140719,0.00040042,7]
[422462859,1778968263000,-448.43651,0.00040042,30]
[422462848,1778968263000,-151.0,0.00040042,30]
[422462872,1778968263000,-693.45,0.00040044,120]
[422462861,1778968263000,-448.43651,0.00040042,30]
[422462873,1778968263000,-391.71765849,0.00040066,2]
[422462863,1778968263000,-151.0,0.00040042,30]
[422462903,1778968263000,-406.85,0.0004029,120]
[422462868,1778968263000,-151.0,0.00040042,30]
[422462865,1778968263000,-151.0,0.00040042,30]
[422462871,1778968263000,-151.0,0.00040042,30]
[422462869,1778968263000,-240.725161,0.00040042,30]
[422462870,1778968263000,-151.0,0.00040042,30]
[422462866,1778968263000,-240.725161,0.00040042,30]
[422462864,1778968263000,-151.0,0.00040042,30]
[422462862,1778968263000,-151.0,0.00040042,30]
[422462867,1778968263000,-240.725161,0.00040042,30]
[422462931,1778968264000,-2000.0,0.00040334,120]
[422462940,1778968264000,-167.0,0.00040342,120]
[422462936,1778968264000,-152.0,0.00040334,120]
[422462934,1778968264000,-495.59196105,0.00040334,120]
[422462938,1778968264000,-151.933482,0.00040334,10]
[422462933,1778968264000,-155.0,0.00040334,120]
[422462939,1778968264000,-206.0,0.00040342,120]
[422462937,1778968264000,-151.0,0.00040334,10]
[422462945,1778968264000,-284.289204,0.00040342,30]
[422462930,1778968264000,-154.0,0.00040334,120]
[422462932,1778968264000,-157.0,0.00040334,120]
[422462935,1778968264000,-334.0,0.00040334,120]
[422462946,1778968264000,-284.289204,0.00040342,30]
[422462943,1778968264000,-740.0,0.00040342,120]
[422462944,1778968264000,-212.0,0.00040342,120]
[422462948,1778968264000,-284.289208,0.00040342,30]
[422462928,1778968264000,-213.0,0.00040333,120]
[422462950,1778968264000,-222.91459701,0.00040342,3]
[422462929,1778968264000,-354.0,0.00040333,120]
[422462926,1778968264000,-309.72566823,0.00040313,120]
[422462910,1778968264000,-406.85,0.0004029,120]
[422462927,1778968264000,-1544.6549703,0.0004032,30]
[422462951,1778968264000,-1486.69,0.00040342,60]
[422462906,1778968264000,-406.85,0.0004029,120]
[422462908,1778968264000,-406.85,0.0004029,120]
[422462907,1778968264000,-406.85,0.0004029,120]
[422462909,1778968264000,-406.85,0.0004029,120]
[422462912,1778968264000,-406.85,0.0004029,120]
[422462914,1778968264000,-4222.18,0.0004029,60]
[422462911,1778968264000,-406.85,0.0004029,120]
[422462913,1778968264000,-2005.9555727,0.0004029,30]
[422462915,1778968264000,-462.3,0.0004029,60]
[422462916,1778968264000,-1675.19,0.0004029,60]
[422462917,1778968264000,-3397.24,0.0004029,60]
[422462921,1778968264000,-415.89,0.000403,120]
[422462918,1778968264000,-3916.13466405,0.00040298,30]
[422462922,1778968264000,-3033.15196717,0.000403,2]
[422462923,1778968264000,-2325.81194967,0.000403,2]
[422462920,1778968264000,-664.13,0.000403,120]
[422462924,1778968264000,-1746.19054447,0.000403,2]
[422462919,1778968264000,-2059.5399604,0.00040298,14]
[422462925,1778968264000,-320.52040482,0.00040313,120]
[422462942,1778968264000,-577.0,0.00040342,120]
[422462966,1778968264000,-357.42891144,0.00040344,2]
[422462949,1778968264000,-500.0,0.00040342,3]
[422462975,1778968264000,-2023.39421763,0.00040344,2]
[422462976,1778968264000,-2775.59797546,0.00040344,2]
[422462978,1778968264000,-44106.59173443,0.00040344,2]
[422462977,1778968264000,-178303.08710182,0.00040344,2]
[422462979,1778968264000,-155.20611684,0.00040344,2]
[422462981,1778968264000,-255.55972675,0.00040344,2]
[422462980,1778968264000,-1720.63885219,0.00040344,2]
[422462983,1778968264000,-1293.84176659,0.00040344,2]
[422462969,1778968264000,-1560.13603335,0.00040344,2]
[422462982,1778968264000,-500.0,0.00040344,2]
[422462988,1778968264000,-9493.72494923,0.00040344,2]
[422462985,1778968264000,-1068.76745629,0.00040344,2]
[422462984,1778968264000,-58937.3405404,0.00040344,2]
[422462986,1778968264000,-559.50430236,0.00040344,2]
[422462989,1778968264000,-1093.70097476,0.00040344,2]
[422462991,1778968264000,-3515.44406625,0.00040344,2]
[422462990,1778968264000,-1345.81176259,0.00040344,2]
[422462992,1778968264000,-2255.31663082,0.00040344,2]
[422462947,1778968264000,-284.289204,0.00040342,30]
[422462970,1778968264000,-1056.58396311,0.00040344,2]
[422462987,1778968264000,-15906.64560457,0.00040344,2]
[422462972,1778968264000,-503.72560276,0.00040344,2]
[422462974,1778968264000,-2522.38931415,0.00040344,2]
[422462941,1778968264000,-151.0,0.00040342,120]
[422462953,1778968264000,-500.0,0.00040342,3]
[422462962,1778968264000,-31246.8116551,0.00040344,2]
[422462955,1778968264000,-500.0,0.00040342,3]
[422462958,1778968264000,-174204.2683545,0.00040344,2]
[422462956,1778968264000,-300.0,0.00040342,3]
[422462954,1778968264000,-487.2354874,0.00040342,3]
[422462957,1778968264000,-200.0,0.00040342,3]
[422462961,1778968264000,-1210.0,0.00040344,2]
[422462960,1778968264000,-125452.45905061,0.00040344,2]
[422462959,1778968264000,-172417.2810401,0.00040344,2]
[422462968,1778968264000,-992.08362411,0.00040344,2]
[422462964,1778968264000,-12628.83471965,0.00040344,2]
[422462967,1778968264000,-2876.13406589,0.00040344,2]
[422462965,1778968264000,-721.38733447,0.00040344,2]
[422462963,1778968264000,-8460.0,0.00040344,2]
[422462971,1778968264000,-5328.76885294,0.00040344,2]
[422462952,1778968264000,-151.0,0.00040342,30]
[422462973,1778968264000,-1527.66770136,0.00040344,2]
[422463008,1778968265000,-500.0,0.00015209,2]
[422463007,1778968265000,-500.0,0.00015209,2]
[422463010,1778968265000,-500.0,0.00015209,2]
[422463011,1778968265000,-212.0,0.00024,2]
[422463018,1778968265000,-151.0,0.00036968,7]
[422463012,1778968265000,-213.90251706,0.00025,2]
[422463015,1778968265000,-151.0,0.000296,7]
[422463017,1778968265000,-16956.59816678,0.00036379,2]
[422463006,1778968265000,-500.0,0.00015209,2]
[422463009,1778968265000,-500.0,0.00015209,2]
[422463005,1778968265000,-500.0,0.00015109,2]
[422462998,1778968265000,-643.0,0.00040344,2]
[422463003,1778968265000,-500.0,0.00015109,2]
[422463002,1778968265000,-548233.87410258,0.00040344,2]
[422462995,1778968265000,-13188.07139998,0.00040344,2]
[422462996,1778968265000,-368.5130609,0.00040344,2]
[422462994,1778968265000,-767.00815247,0.00040344,2]
[422463000,1778968265000,-995.78908556,0.00040344,2]
[422462999,1778968265000,-5028.65101728,0.00040344,2]
[422462993,1778968265000,-23534.63981214,0.00040344,2]
[422462997,1778968265000,-188.83764877,0.00040344,2]
[422463001,1778968265000,-587.92482013,0.00040344,2]
[422463004,1778968265000,-500.0,0.00015109,2]
[422463016,1778968265000,-300.0,0.00036329,2]
[422463019,1778968265000,-151.0,0.00036968,7]
[422463014,1778968265000,-151.0,0.000296,7]
[422463042,1778968265000,-1711.902861,0.00040344,2]
[422463040,1778968265000,-245.097139,0.00036968,7]
[422463039,1778968265000,-151.0,0.000296,7]
[422463041,1778968265000,-151.0,0.00036968,7]
[422463038,1778968265000,-500.0,0.0001579,2]
[422463037,1778968265000,-485.06388559,0.00040344,2]
[422463036,1778968265000,-7260.00000001,0.00040344,2]
[422463033,1778968265000,-38075.16171819,0.00040344,2]
[422463034,1778968265000,-500.0,0.00015209,2]
[422463032,1778968265000,-11000.72280963,0.00040344,2]
[422463035,1778968265000,-300.0,0.00036329,2]
[422463030,1778968265000,-15196.92839118,0.00040344,2]
[422463029,1778968265000,-179.91908229,0.00040344,2]
[422463028,1778968265000,-3327.58289185,0.00040344,2]
[422463025,1778968265000,-151.0,0.00040042,30]
[422463027,1778968265000,-269681.86100262,0.00040344,2]
[422463022,1778968265000,-151.0,0.000389,30]
[422463023,1778968265000,-240.725161,0.00040042,30]
[422463024,1778968265000,-151.0,0.00040042,30]
[422463026,1778968265000,-151.0,0.00040042,30]
[422463020,1778968265000,-151.0,0.000389,30]
[422463031,1778968265000,-550.0,0.00040344,2]
[422463021,1778968265000,-151.0,0.000389,30]
[422463043,1778968265000,-946.71721297,0.0001481,2]
[422463013,1778968265000,-3607.98802932,0.00028533,2]
[422463044,1778968333000,159.96,0.00029839,120]
[422463045,1778968357000,319.69,0.00026142,120]
[422463046,1778968357000,319.69,0.00028756,120]
[422463049,1778968690000,-221.0230326,0.00010773,2]
[422463048,1778968690000,-204.16,0.0001026,2]
[422463054,1778969206000,-424.83367647,0.00010773,2]
[422463078,1778969432000,-150.0,0.00013488,2]
[422463080,1778969432000,-111.69743029,0.00013488,2]
[422463081,1778969432000,-262.09781016,0.00013488,2]
[422463079,1778969432000,-91.03442828,0.00013488,2]
[422463082,1778969432000,-150.0,0.00013488,2]
[422463084,1778969432000,-150.0,0.00013514,2]
[422463087,1778969432000,-262.09781016,0.00013518,2]
[422463090,1778969432000,-150.0,0.0001352,2]
[422463091,1778969432000,-106.92483331,0.00013525,2]
[422463083,1778969432000,-262.09781016,0.00013503,2]
[422463086,1778969432000,-150.0,0.00013518,2]
[422463092,1778969432000,-66.09516669,0.00013525,2]
[422463089,1778969432000,-150.0,0.0001352,2]
[422463093,1778969432000,-262.09781016,0.00013533,2]
[422463096,1778969432000,-179.247059,0.00013535,2]
[422463095,1778969432000,-150.0,0.00013535,2]
[422463098,1778969432000,-94.16302115,0.00013539,2]
[422463077,1778969432000,-150.0,0.00013488,2]
[422463088,1778969432000,-150.0,0.00013518,2]
[422463076,1778969432000,-150.0,0.00013488,2]
[422463061,1778969432000,-415.89,0.000125,2]
[422463074,1778969432000,-150.0,0.00013488,2]
[422463056,1778969432000,-150.0,0.00011635,2]
[422463055,1778969432000,-75.16632353,0.00010773,2]
[422463057,1778969432000,-202.2664742,0.00011851,2]
[422463058,1778969432000,-179.13317937,0.000124,2]
[422463059,1778969432000,-648.82436458,0.000125,2]
[422463097,1778969432000,-187.566154,0.00013539,2]
[422463060,1778969432000,-15.30563542,0.000125,2]
[422463064,1778969432000,-300.0,0.00013487,2]
[422463063,1778969432000,-181.75,0.00013048,2]
[422463065,1778969432000,-194.0,0.00013487,2]
[422463067,1778969432000,-300.0,0.00013487,2]
[422463069,1778969432000,-150.0,0.00013488,2]
[422463062,1778969432000,-378.37,0.00012877,2]
[422463066,1778969432000,-1200.0,0.00013487,2]
[422463068,1778969432000,-150.0,0.00013488,2]
[422463070,1778969432000,-150.0,0.00013488,2]
[422463075,1778969432000,-150.0,0.00013488,2]
[422463071,1778969432000,-150.0,0.00013488,2]
[422463072,1778969432000,-150.0,0.00013488,2]
[422463073,1778969432000,-150.0,0.00013488,2]
[422463099,1778969432000,-102.31651185,0.00013539,2]
[422463085,1778969432000,-150.0,0.00013517,2]
[422463104,1778969432000,-150.0,0.00013549,2]
[422463124,1778969432000,-150.0,0.00013617,2]
[422463127,1778969432000,-150.0,0.00013635,2]
[422463121,1778969432000,-262.09781016,0.00013609,2]
[422463129,1778969432000,-150.0,0.00013638,2]
[422463125,1778969432000,-262.09781016,0.00013624,2]
[422463130,1778969432000,-262.09781016,0.00013639,2]
[422463135,1778969432000,-150.0,0.00013664,2]
[422463133,1778969432000,-200.0,0.00013644,2]
[422463136,1778969432000,-150.0,0.00013668,2]
[422463137,1778969432000,-150.0,0.00013669,2]
[422463140,1778969432000,-150.0,0.00013675,2]
[422463138,1778969432000,-262.09781016,0.00013669,2]
[422463139,1778969432000,-150.0,0.00013671,2]
[422463141,1778969432000,-150.0,0.00013675,2]
[422463132,1778969432000,-150.0,0.00013643,2]
[422463134,1778969432000,-262.09781016,0.00013654,2]
[422463142,1778969432000,-262.09781016,0.00013684,2]
[422463143,1778969432000,-150.0,0.00013693,2]
[422463100,1778969432000,-150.0,0.00013539,2]
[422463119,1778969432000,-150.0,0.00013605,2]
[422463126,1778969432000,-150.0,0.00013628,2]
[422463131,1778969432000,-150.0,0.00013641,2]
[422463123,1778969432000,-150.0,0.00013613,2]
[422463102,1778969432000,-150.0,0.00013548,2]
[422463120,1778969432000,-150.0,0.00013608,2]
[422463105,1778969432000,-150.0,0.00013549,2]
[422463101,1778969432000,-150.0,0.00013546,2]
[422463103,1778969432000,-262.09781016,0.00013548,2]
[422463106,1778969432000,-150.0,0.0001355,2]
[422463107,1778969432000,-150.0,0.00013563,2]
[422463108,1778969432000,-262.09781016,0.00013563,2]
[422463109,1778969432000,-150.0,0.00013565,2]
[422463110,1778969432000,-150.0,0.00013576,2]
[422463144,1778969432000,-150.0,0.00013694,2]
[422463114,1778969432000,-150.0,0.00013581,2]
[422463116,1778969432000,-150.0,0.00013591,2]
[422463111,1778969432000,-150.0,0.00013578,2]
[422463115,1778969432000,-500.0,0.00013581,2]
[422463112,1778969432000,-262.09781016,0.00013578,2]
[422463113,1778969432000,-150.0,0.00013579,2]
[422463117,1778969432000,-262.09781016,0.00013594,2]
[422463118,1778969432000,-2971.61,0.00013602,2]
[422463122,1778969432000,-150.0,0.0001361,2]
[422463128,1778969432000,-150.0,0.00013638,2]
[422463182,1778969433000,-150.0,0.00013817,2]
[422463189,1778969433000,-150.0,0.00013847,2]
[422463185,1778969433000,-150.0,0.00013824,2]
[422463184,1778969433000,-150.0,0.00013824,2]
[422463181,1778969433000,-150.0,0.00013815,2]
[422463190,1778969433000,-150.0,0.00013849,2]
[422463186,1778969433000,-166.66,0.00013836,2]
[422463175,1778969433000,-262.09781016,0.0001379,2]
[422463176,1778969433000,-150.0,0.00013794,2]
[422463174,1778969433000,-150.0,0.00013787,2]
[422463173,1778969433000,-150.0,0.00013787,2]
[422463187,1778969433000,-262.09781016,0.00013836,2]
[422463180,1778969433000,-150.0,0.00013811,2]
[422463193,1778969433000,-500.0,0.00013855,2]
[422463191,1778969433000,-262.09781016,0.00013851,2]
[422463183,1778969433000,-262.09781016,0.00013821,2]
[422463203,1778969433000,-150.0,0.00013885,2]
[422463192,1778969433000,-150.0,0.00013855,2]
[422463194,1778969433000,-150.0,0.00013862,2]
[422463195,1778969433000,-150.0,0.00013862,2]
[422463196,1778969433000,-150.0,0.00013862,2]
[422463202,1778969433000,-262.09781016,0.00013881,2]
[422463199,1778969433000,-150.0,0.00013875,2]
[422463204,1778969433000,-262.09781016,0.00013896,2]
[422463198,1778969433000,-150.0,0.0001387,2]
[422463200,1778969433000,-150.0,0.00013877,2]
[422463179,1778969433000,-262.09781016,0.00013806,2]
[422463188,1778969433000,-150.0,0.0001384,2]
[422463201,1778969433000,-196.33462482,0.00013879,21]
[422463151,1778969433000,-150.0,0.00013702,2]
[422463172,1778969433000,-150.0,0.00013787,2]
[422463197,1778969433000,-262.09781016,0.00013866,2]
[422463146,1778969433000,-160.93,0.00013698,2]
[422463150,1778969433000,-262.09781016,0.000137,2]
[422463149,1778969433000,-200.0,0.00013699,2]
[422463152,1778969433000,-150.0,0.00013702,2]
[422463147,1778969433000,-299.99,0.00013699,2]
[422463148,1778969433000,-166.66,0.00013699,2]
[422463145,1778969433000,-150.0,0.00013697,2]
[422463154,1778969433000,-262.09781016,0.00013715,2]
[422463153,1778969433000,-150.0,0.00013712,2]
[422463155,1778969433000,-150.0,0.0001372,2]
[422463159,1778969433000,-262.09781016,0.0001373,2]
[422463163,1778969433000,-150.0,0.00013746,2]
[422463177,1778969433000,-150.0,0.00013798,2]
[422463158,1778969433000,-150.0,0.00013727,2]
[422463165,1778969433000,-150.0,0.00013757,2]
[422463164,1778969433000,-150.0,0.00013752,2]
[422463166,1778969433000,-262.09781016,0.0001376,2]
[422463157,1778969433000,-150.0,0.00013723,2]
[422463162,1778969433000,-262.09781016,0.00013745,2]
[422463161,1778969433000,-150.0,0.00013737,2]
[422463156,1778969433000,-150.0,0.00013722,2]
[422463167,1778969433000,-150.0,0.00013763,2]
[422463168,1778969433000,-150.0,0.00013769,2]
[422463171,1778969433000,-150.0,0.00013782,2]
[422463178,1778969433000,-150.0,0.000138,2]
[422463170,1778969433000,-262.09781016,0.00013775,2]
[422463169,1778969433000,-150.0,0.00013772,2]
[422463160,1778969433000,-150.0,0.00013732,2]
[422463206,1778969433000,-150.0,0.00013901,2]
[422463234,1778969433000,-150.0,0.00013987,2]
[422463208,1778969433000,-150.0,0.00013909,2]
[422463251,1778969433000,-600.0,0.00014027,2]
[422463241,1778969433000,-150.0,0.00014008,2]
[422463252,1778969433000,-150.0,0.00014027,2]
[422463253,1778969433000,-288.27,0.00014028,2]
[422463249,1778969433000,-592.18,0.00014023,2]
[422463250,1778969433000,-288.27,0.00014024,2]
[422463244,1778969433000,-262.09781016,0.00014017,2]
[422463246,1778969433000,-161.5,0.0001402,2]
[422463248,1778969433000,-592.18,0.00014021,2]
[422463245,1778969433000,-161.5,0.0001402,2]
[422463242,1778969433000,-150.0,0.00014012,2]
[422463243,1778969433000,-150.0,0.00014017,2]
[422463247,1778969433000,-269.16,0.0001402,2]
[422463238,1778969433000,-262.09781016,0.00014002,2]
[422463258,1778969433000,-600.0,0.00014036,2]
[422463261,1778969433000,-262.09781016,0.00014048,2]
[422463262,1778969433000,-150.0,0.0001405,2]
[422463264,1778969433000,-150.0,0.00014056,2]
[422463266,1778969433000,-262.09781016,0.00014063,2]
[422463254,1778969433000,-600.0,0.00014029,2]
[422463259,1778969433000,-150.0,0.00014038,2]
[422463256,1778969433000,-288.27,0.00014031,2]
[422463263,1778969433000,-150.0,0.0001405,2]
[422463265,1778969433000,-150.0,0.00014057,2]
[422463255,1778969433000,-150.0,0.0001403,2]
[422463257,1778969433000,-262.09781016,0.00014033,2]
[422463209,1778969433000,-262.09781016,0.00013912,2]
[422463268,1778969433000,-150.0,0.00014075,2]
[422463260,1778969433000,-150.0,0.00014046,2]
[422463237,1778969433000,-250.0,0.00014,2]
[422463267,1778969433000,-150.0,0.00014069,2]
[422463236,1778969433000,-150.0,0.00013997,2]
[422463231,1778969433000,-1000.0,0.00013986,2]
[422463205,1778969433000,-150.0,0.00013899,2]
[422463207,1778969433000,-150.0,0.00013907,2]
[422463211,1778969433000,-150.0,0.00013916,2]
[422463212,1778969433000,-150.0,0.00013925,2]
[422463214,1778969433000,-150.0,0.00013927,2]
[422463215,1778969433000,-150.0,0.00013928,2]
[422463210,1778969433000,-150.0,0.00013916,2]
[422463217,1778969433000,-150.0,0.00013937,2]
[422463226,1778969433000,-150.0,0.00013967,2]
[422463219,1778969433000,-2971.61,0.00013942,2]
[422463221,1778969433000,-150.0,0.00013946,2]
[422463225,1778969433000,-150.0,0.00013958,2]
[422463227,1778969433000,-262.09781016,0.00013972,2]
[422463213,1778969433000,-262.09781016,0.00013927,2]
[422463223,1778969433000,-150.0,0.00013956,2]
[422463232,1778969433000,-150.0,0.00013987,2]
[422463233,1778969433000,-150.0,0.00013987,2]
[422463239,1778969433000,-150.0,0.00014003,2]
[422463228,1778969433000,-166.66,0.00013973,2]
[422463224,1778969433000,-262.09781016,0.00013957,2]
[422463229,1778969433000,-150.0,0.00013977,2]
[422463230,1778969433000,-150.0,0.00013979,2]
[422463235,1778969433000,-262.09781016,0.00013987,2]
[422463220,1778969433000,-262.09781016,0.00013942,2]
[422463216,1778969433000,-150.0,0.00013937,2]
[422463222,1778969433000,-150.0,0.00013953,2]
[422463218,1778969433000,-2000.0,0.0001394,2]
[422463240,1778969433000,-150.0,0.00014004,2]
[422463315,1778969434000,-150.0,0.00014237,2]
[422463312,1778969434000,-150.0,0.00014237,2]